bitfinex/quotes_SOLUSD_20240906
["timestamp","ask_amount","ask_price","bid_price","bid_amount"]
[1725645561772,19.6579,127.18,127.1,7.8674]
[1725645561773,7.8651,127.15,127.1,7.8674]
[1725645561984,7.8651,127.15,127.11,7.867]
[1725645562478,7.8643,127.16,127.12,7.8663]
[1725645562678,20.0,127.15,127.12,7.8663]
[1725645564376,20.0,127.15,127.11,19.6672]
[1725645564587,7.8649,127.15,127.11,27.5342]
[1725645565279,7.8642,127.16,127.12,7.8664]
[1725645565659,20.0,127.15,127.12,7.8664]
[1725645565971,20.0,127.15,127.11,19.6672]
[1725645565972,20.0,127.15,127.13,7.8658]
[1725645566170,20.0,127.16,127.13,7.8658]
[1725645566371,20.0,127.16,127.12,7.8663]
[1725645567170,27.8642,127.16,127.12,7.8663]
[1725645567558,20.0,127.16,127.11,19.6672]
[1725645567765,27.8636,127.17,127.13,7.8655]
[1725645568088,7.8642,127.16,127.12,7.8663]
[1725645568383,20.0,127.15,127.12,7.8663]
[1725645568794,7.8665,127.12,127.08,27.5409]
[1725645569092,7.8665,127.12,127.03,60.0]
[1725645569093,7.8685,127.09,127.04,7.871]
[1725645569286,7.8687,127.09,127.05,7.8708]
[1725645569674,7.8687,127.09,127.05,27.5479]
[1725645569875,7.868,127.1,127.06,7.8702]
[1725645570070,27.8675,127.11,127.07,7.8696]
[1725645571392,27.8675,127.11,127.05,19.6771]
[1725645571393,7.8679,127.1,127.06,7.87]
[1725645572477,7.8685,127.09,127.02,50.56536555]
[1725645572686,7.868,127.1,127.06,7.8701]
[1725645572871,7.8687,127.09,127.05,27.5478]
[1725645574662,7.8687,127.09,127.06,7.8702]
[1725645575591,7.8697,127.07,127.03,19.6803]
[1725645575792,39.6683,127.11,127.03,27.5518]
[1725645575793,7.8694,127.08,127.03,27.5518]
[1725645575993,7.8697,127.07,127.03,27.5518]
[1725645576492,14.5166,127.09,127.05,7.8706]
[1725645583101,7.8691,127.08,127.05,7.8706]
[1725645583275,7.8691,127.08,127.04,7.8711]
[1725645584589,7.8691,127.08,127.05,7.8708]
[1725645584894,7.868,127.1,127.06,7.8702]
[1725645585199,7.8685,127.09,127.05,7.8706]
[1725645585700,19.6709,127.1,127.02,19.6817]
[1725645585900,7.8693,127.08,127.04,7.8714]
[1725645586074,7.8698,127.07,127.03,7.8719]
[1725645587110,20.0,127.11,127.0,27.5586]
[1725645587111,19.6729,127.08,127.0,27.5586]
[1725645587286,1.96761677,127.09,126.98,35.9492]
[1725645587287,19.6758,127.06,126.98,35.9492]
[1725645587597,20.0,127.05,127.0,7.874]
[1725645587807,7.8717,127.04,127.0,7.874]
[1725645588278,7.8717,127.04,127.0,27.559]
[1725645588472,27.8709,127.05,127.0,19.685]
[1725645588679,7.8709,127.05,127.0,19.685]
[1725645589287,7.8709,127.05,127.01,7.8731]
[1725645590882,7.8709,127.05,127.02,7.8727]
[1725645591202,7.8709,127.05,127.01,7.8731]
[1725645591501,7.8721,127.03,126.99,27.56]
[1725645592598,70.58925806,127.09,127.0,7.8738]
[1725645592798,70.58925806,127.09,126.99,19.6857]
[1725645592799,20.0,127.08,127.01,45.56675858]
[1725645593004,6.6025,127.09,127.01,0.56599682]
[1725645594375,27.8693,127.08,127.04,7.8712]
[1725645594682,20.0,127.08,127.02,19.6805]
[1725645595102,7.87,127.07,127.03,7.8721]
[1725645595990,14.4714,127.09,127.04,27.55]
[1725645596184,14.4714,127.09,127.01,39.3655]
[1725645596185,6.6025,127.09,127.01,39.3655]
[1725645596424,6.6025,127.09,127.0,7.8736]
[1725645596425,7.8713,127.05,127.0,7.8736]
[1725645596876,7.8713,127.05,126.99,19.6853]
[1725645596877,7.8708,127.06,127.02,7.8723]
[1725645597516,7.8708,127.06,126.99,0.56721566]
[1725645597517,6.6025,127.09,127.03,27.5522]
[1725645597709,20.0,127.08,127.03,27.5522]
[1725645598213,7.8702,127.07,127.03,27.5522]
[1725645598505,7.8702,127.07,127.03,19.6802]
[1725645599298,7.8702,127.07,127.03,27.5522]
[1725645599697,27.8693,127.08,127.04,7.8715]
[1725645599896,20.0,127.08,127.05,7.8708]
[1725645600090,20.0,127.08,127.03,19.6802]
[1725645600300,6.6025,127.09,127.05,19.6758]
[1725645600616,7.871,127.05,127.02,19.6811]
[1725645600792,7.8704,127.06,127.02,19.6811]
[1725645600992,45.0,127.08,126.99,19.6851]
[1725645600993,1.96811755,127.05,126.99,19.6851]
[1725645601318,21.9355,127.09,126.99,39.373]
[1725645601493,7.8706,127.06,127.02,7.8726]
[1725645601695,20.0,127.05,127.02,7.8726]
[1725645602093,7.8716,127.04,127.0,27.5574]
[1725645602289,29.8044,127.09,127.05,7.8709]
[1725645602515,14.4714,127.09,127.05,7.8709]
[1725645602890,7.8679,127.1,127.04,19.6787]
[1725645603119,7.867,127.12,127.07,7.8694]
[1725645603291,6.6343,127.13,127.05,0.56514104]
[1725645603610,14.5006,127.13,127.09,19.6709]
[1725645604326,29.9094,127.16,127.11,7.867]
[1725645604613,29.9094,127.16,127.09,19.6709]
[1725645604614,7.8651,127.15,127.09,19.6709]
[1725645605092,7.8651,127.15,127.1,0.56353602]
[1725645605293,7.8651,127.15,127.09,19.6709]
[1725645605498,7.8651,127.15,127.1,7.8676]
[1725645606030,1.96682532,127.15,127.08,24.2636]
[1725645606191,7.8661,127.13,127.08,24.2636]
[1725645606399,9.83346964,127.12,127.07,7.8695]
[1725645606694,9.83346964,127.12,127.08,7.8687]
[1725645606695,7.8665,127.12,127.08,7.8687]
[1725645607007,7.3665,127.12,127.08,7.8687]
[1725645608598,1.96705667,127.11,127.06,19.6753]
[1725645608896,1.96726313,127.1,127.03,19.6791]
[1725645609097,7.87,127.07,127.03,19.6791]
[1725645609290,7.8704,127.06,127.03,19.6791]
[1725645609495,7.8711,127.05,127.01,7.8732]
[1725645610512,14.477,127.05,127.0,27.558]
[1725645610716,7.8727,127.03,126.98,23.7221]
[1725645610910,6.6059,127.05,126.98,15.8469]
[1725645611114,14.4753,127.08,127.01,19.6828]
[1725645611321,20.0,127.07,127.03,7.8717]
[1725645611527,7.8704,127.06,127.01,19.6828]
[1725645611706,27.8701,127.07,127.02,7.8722]
[1725645611925,27.8701,127.07,127.0,6.4806]
[1725645611926,20.0,127.07,127.04,7.8715]
[1725645612213,20.0,127.07,127.03,27.552]
[1725645612599,27.87,127.07,127.03,19.6801]
[1725645613727,7.8704,127.06,127.03,19.6801]
[1725645614227,22.156,127.11,127.05,19.6769]
[1725645614411,6.3128,127.11,127.05,19.6769]
[1725645614606,6.3128,127.14,127.12,7.8665]
[1725645614809,7.8641,127.16,127.05,31.89073669]
[1725645614810,7.8641,127.16,127.11,27.5348]
[1725645615011,7.8641,127.16,127.12,7.8665]
[1725645615608,6.3128,127.18,127.14,7.8648]
[1725645615801,14.1757,127.18,127.13,27.5293]
[1725645615999,14.1757,127.18,127.14,7.8651]
[1725645616202,7.8629,127.18,127.14,7.8651]
[1725645616398,7.8633,127.18,127.13,27.5293]
[1725645616804,2.97077929,127.2,127.13,19.6635]
[1725645617024,7.863,127.18,127.13,27.5289]
[1725645617324,7.8623,127.19,127.14,7.8652]
[1725645617536,6.0605,127.21,127.14,7.8652]
[1725645617852,6.0605,127.21,127.13,19.6635]
[1725645617853,6.0605,127.21,127.11,0.56200494]
[1725645618003,7.8605,127.22,127.17,7.8633]
[1725645619003,7.8598,127.23,127.19,7.8621]
[1725645620411,13.9208,127.24,127.19,7.8621]
[1725645620828,7.8598,127.23,127.18,7.8627]
[1725645621611,6.0617,127.24,127.14,6.36]
[1725645621612,7.8617,127.2,127.15,7.8647]
[1725645621916,7.8617,127.2,127.15,7.8641]
[1725645622119,20.0,127.19,127.15,7.8641]
[1725645622735,27.8623,127.19,127.15,7.8641]
[1725645624839,20.0,127.19,127.14,27.5276]
[1725645625006,7.8624,127.19,127.14,27.5276]
[1725645625409,7.8624,127.19,127.15,7.8644]
[1725645626835,7.8623,127.19,127.14,27.5272]
[1725645627045,24.96565596,127.23,127.16,7.8639]
[1725645627046,7.8616,127.2,127.16,7.8639]
[1725645627259,20.0,127.19,127.16,7.8639]
[1725645627412,27.8623,127.19,127.15,7.8646]
[1725645627741,1.96588331,127.18,127.12,7.8661]
[1725645627914,7.8645,127.16,127.11,27.5338]
[1725645628238,7.8655,127.14,127.1,23.2251]
[1725645628543,25.9527,127.17,127.1,15.3575]
[1725645628828,20.0,127.16,127.1,15.3575]
[1725645629031,7.8655,127.14,127.1,23.2248]
[1725645630217,7.8661,127.13,127.09,7.8683]
[1725645631425,20.0,127.16,127.08,19.6714]
[1725645631626,7.866,127.13,127.09,7.8682]
[1725645631830,21.62885119,127.15,127.07,23.6026]
[1725645632141,20.0,127.14,127.07,23.6026]
[1725645632358,7.8679,127.1,127.07,15.7334]
[1725645632837,7.8673,127.11,127.07,15.7334]
[1725645633045,1.9671698,127.12,127.03,23.1514]
[1725645633337,7.8697,127.07,127.03,23.1514]
[1725645633539,7.8685,127.09,127.05,7.8704]
[1725645634121,45.0,127.13,127.06,19.6752]
[1725645634327,7.8678,127.1,127.06,27.545]
[1725645635037,7.8666,127.12,127.08,7.8687]
[1725645635537,7.8661,127.13,127.09,7.8683]
[1725645635718,25.953,127.17,127.1,27.5357]
[1725645635719,7.8652,127.15,127.1,27.5357]
[1725645636112,7.8657,127.14,127.1,19.6682]
[1725645636534,7.8663,127.13,127.09,7.8682]
[1725645637038,7.8654,127.14,127.1,7.8678]
[1725645637627,7.8649,127.15,127.11,7.8671]
[1725645639634,20.0,127.14,127.11,7.8671]
[1725645640925,1.96664371,127.13,127.09,19.6708]
[1725645641123,7.8666,127.12,127.09,27.5392]
[1725645641464,7.8675,127.11,127.07,7.8691]
[1725645641831,7.868,127.1,127.06,27.5446]
[1725645642053,1.96720724,127.13,127.06,27.5446]
[1725645642054,7.8688,127.09,127.06,19.6745]
[1725645642427,7.8688,127.09,127.05,7.8709]
[1725645643338,7.8685,127.09,127.06,7.8702]
[1725645644134,7.8685,127.09,127.05,27.5476]
[1725645644540,7.869,127.08,127.05,19.6769]
[1725645644754,7.8685,127.09,127.05,27.5477]
[1725645644923,7.8682,127.1,127.06,7.8702]
[1725645645444,1.96762305,127.14,127.08,7.8688]
[1725645645636,1.96762305,127.14,127.07,19.6733]
[1725645645843,7.8675,127.11,127.07,27.5428]
[1725645646230,7.8678,127.1,127.07,27.5428]
[1725645646937,7.8674,127.11,127.07,27.5428]
[1725645647335,7.8667,127.12,127.08,7.869]
[1725645648141,7.8662,127.13,127.09,7.8683]
[1725645648336,25.9521,127.17,127.09,36.2741]
[1725645648546,7.8652,127.15,127.11,7.8669]
[1725645648750,25.9521,127.17,127.11,7.8669]
[1725645649339,7.8654,127.14,127.11,7.8669]
[1725645649730,7.8644,127.16,127.12,7.8665]
[1725645650433,6.5436,127.2,127.13,19.6648]
[1725645650634,8.50990534,127.2,127.13,19.6648]
[1725645650953,6.5436,127.23,127.11,81.88781949]
[1725645651173,6.5436,127.23,127.12,45.0]
[1725645651848,28.15947552,127.23,127.12,45.0]
[1725645652038,28.15947552,127.23,127.11,45.0]
[1725645652239,6.5436,127.23,127.12,0.56212421]
[1725645652441,7.8607,127.22,127.17,7.8629]
[1725645652635,7.861,127.21,127.17,7.8629]
[1725645652835,14.4039,127.23,127.19,7.862]
[1725645653044,7.8608,127.22,127.18,27.5191]
[1725645653732,26.1865,127.26,127.16,0.56096685]
[1725645653936,26.1865,127.26,127.16,84.88006685]
[1725645654352,7.8597,127.24,127.2,7.8616]
[1725645654561,7.8599,127.23,127.19,19.6552]
[1725645654750,7.8604,127.22,127.19,19.6552]
[1725645655541,7.8599,127.23,127.19,19.6552]
[1725645656544,7.861,127.21,127.17,7.8633]
[1725645656749,7.8618,127.2,127.16,27.523]
[1725645657451,7.8626,127.19,127.15,29.7735]
[1725645657664,19.6481,127.24,127.15,29.7735]
[1725645657665,7.8618,127.2,127.16,7.8639]
[1725645659341,20.0,127.19,127.12,15.2785]
[1725645659657,7.8642,127.16,127.12,42.8101]
[1725645660256,7.8636,127.17,127.12,42.8101]
[1725645660455,6.3863,127.2,127.14,19.6631]
[1725645660635,20.0,127.19,127.14,19.6631]
[1725645661358,7.8617,127.2,127.16,7.864]
[1725645661555,20.0,127.22,127.14,19.6631]
[1725645661556,20.0,127.19,127.14,19.6631]
[1725645662149,7.8629,127.18,127.14,27.528]
[1725645662939,7.8635,127.17,127.13,7.8657]
[1725645663157,7.8651,127.15,127.12,15.2785]
[1725645663337,20.0,127.14,127.09,15.7006]
[1725645663541,7.8661,127.13,127.09,23.569]
[1725645663859,26.248,127.17,127.1,7.8678]
[1725645663860,7.8655,127.14,127.1,7.8678]
[1725645664059,7.8647,127.15,127.11,7.8669]
[1725645664235,20.0,127.14,127.11,7.8669]
[1725645664557,20.0,127.14,127.12,7.8665]
[1725645664866,7.8642,127.16,127.12,7.8665]
[1725645665153,20.0,127.15,127.12,7.8665]
[1725645665738,7.8655,127.14,127.1,27.5364]
[1725645665943,20.0,127.15,127.1,19.6687]
[1725645666145,20.0,127.15,127.07,27.5428]
[1725645666146,7.8673,127.11,127.07,27.5428]
[1725645666343,7.8684,127.09,127.05,23.4865]
[1725645666560,1.96670506,127.15,127.06,7.8702]
[1725645666561,7.868,127.1,127.06,7.8702]
[1725645667953,7.8684,127.09,127.05,23.4868]
[1725645668347,7.8684,127.09,127.05,15.6161]
[1725645668549,7.869,127.08,127.05,15.6161]
[1725645668740,7.8703,127.06,127.02,7.8726]
[1725645668956,4.92245223,127.12,127.02,7.8726]
[1725645668957,7.8698,127.07,127.02,7.8726]
[1725645669655,7.8698,127.07,127.03,7.872]
[1725645669858,7.8691,127.08,127.03,7.872]
[1725645670165,7.8686,127.09,127.05,7.8707]
[1725645670559,7.8686,127.09,127.04,7.8713]
[1725645670861,7.8703,127.06,127.01,16.5848]
[1725645671056,7.8703,127.06,127.02,7.8726]
[1725645671539,7.8703,127.06,127.01,24.458]
[1725645671739,7.8695,127.08,127.02,20.24795217]
[1725645672142,7.8685,127.09,127.04,19.6784]
[1725645672569,7.8685,127.09,127.04,27.5499]
[1725645673069,11.19543853,127.13,127.04,27.5499]
[1725645673070,7.8693,127.08,127.04,27.5499]
[1725645674063,7.8685,127.09,127.05,7.8708]
[1725645674362,20.0,127.08,127.05,7.8708]
[1725645674946,20.0,127.08,127.04,27.5496]
[1725645675447,27.8693,127.08,127.04,27.5496]
[1725645676144,7.8697,127.07,127.01,36.2669]
[1725645676350,7.8697,127.07,127.02,7.8723]
[1725645676558,7.8697,127.07,127.03,7.872]
[1725645676945,7.8703,127.06,127.01,36.2669]
[1725645677139,7.8709,127.05,127.01,19.6821]
[1725645677449,7.8726,127.03,126.99,7.8745]
[1725645677856,7.8719,127.04,127.0,7.8738]
[1725645678985,7.8721,127.03,126.99,7.8744]
[1725645679166,7.8717,127.04,127.0,7.8738]
[1725645681449,7.8722,127.03,126.99,7.8744]
[1725645681854,7.8728,127.02,126.98,43.2127]
[1725645682160,20.0,127.01,126.95,16.5914]
[1725645682466,7.8777,126.94,126.9,7.8799]
[1725645682672,7.8785,126.93,126.89,7.8807]
[1725645683042,7.8779,126.94,126.89,7.8807]
[1725645683244,7.8794,126.92,126.88,34.9044]
[1725645683439,7.8802,126.9,126.85,43.9533]
[1725645683659,7.8797,126.91,126.86,7.8826]
[1725645684153,1.97032621,126.93,126.85,36.0702]
[1725645684354,7.8819,126.88,126.83,7.8843]
[1725645685166,19.7002,126.91,126.81,22.0242]
[1725645685365,20.0,126.9,126.82,0.57383209]
[1725645685582,7.8798,126.91,126.86,7.8826]
[1725645685753,27.8802,126.9,126.85,7.8833]
[1725645686061,20.0,126.89,126.85,7.8833]
[1725645686263,20.0,126.89,126.83,19.7103]
[1725645686856,7.8813,126.89,126.83,27.5946]
[1725645687068,20.0,126.88,126.83,27.5946]
[1725645688150,27.8816,126.88,126.83,19.7103]
[1725645689170,7.8824,126.87,126.81,15.7329]
[1725645689371,7.8824,126.87,126.82,7.8851]
[1725645689571,20.0,126.88,126.81,15.7329]
[1725645689778,7.8832,126.86,126.8,27.6016]
[1725645689980,27.8834,126.85,126.8,27.6016]
[1725645690268,20.0,126.85,126.81,7.8854]
[1725645690646,20.0,126.85,126.8,19.7153]
[1725645690850,20.0,126.86,126.8,19.7153]
[1725645691248,20.0,126.86,126.83,7.8845]
[1725645692158,20.0,126.87,126.83,7.8845]
[1725645692872,20.0,126.87,126.82,19.7123]
[1725645693075,20.0,126.87,126.83,7.8844]
[1725645693658,27.8822,126.87,126.82,27.5974]
[1725645693865,7.8829,126.86,126.82,19.7123]
[1725645694071,7.8838,126.85,126.79,19.7165]
[1725645694574,7.8828,126.86,126.82,7.8851]
[1725645694761,27.8822,126.87,126.82,7.8851]
[1725645694958,7.8822,126.87,126.82,7.8851]
[1725645695160,20.0,126.86,126.83,7.8845]
[1725645695367,20.0,126.86,126.82,7.8849]
[1725645695566,20.0,126.86,126.83,7.8844]
[1725645695759,20.0,126.87,126.83,7.8844]
[1725645696074,27.8822,126.87,126.83,7.8844]
[1725645696858,20.0,126.87,126.78,65.7157]
[1725645697057,6.285,126.9,126.8,89.4304]
[1725645697375,14.1653,126.9,126.86,7.8825]
[1725645698566,20.0,126.89,126.86,7.8825]
[1725645698958,21.97046214,126.89,126.84,19.7085]
[1725645699264,7.8818,126.88,126.84,19.7085]
[1725645699472,20.0,126.89,126.8,39.4304]
[1725645699473,7.8821,126.87,126.81,19.7131]
[1725645699659,20.0,126.86,126.82,7.885]
[1725645699980,20.0,126.86,126.83,27.5957]
[1725645700178,7.8818,126.88,126.83,27.5957]
[1725645700395,20.0,126.87,126.84,7.8837]
[1725645700757,20.0,126.87,126.83,27.5954]
[1725645701458,20.0,126.87,126.85,19.708]
[1725645701658,20.0,126.89,126.85,19.708]
[1725645701969,20.0,126.89,126.85,27.5909]
[1725645702166,27.8808,126.89,126.85,27.5909]
[1725645702564,27.8808,126.89,126.85,27.5912]
[1725645704470,27.8808,126.89,126.8,40.00377609]
[1725645704471,7.8827,126.86,126.82,27.5962]
[1725645704784,7.8823,126.87,126.83,7.8845]
[1725645705075,27.8814,126.89,126.85,7.8832]
[1725645705278,20.0,126.89,126.86,7.8826]
[1725645705783,20.0,126.89,126.85,7.883]
[1725645706963,27.8808,126.89,126.85,7.883]
[1725645707163,27.8808,126.89,126.84,27.5918]
[1725645707373,7.8814,126.88,126.84,27.5918]
[1725645707990,27.8809,126.89,126.85,7.8832]
[1725645708283,1.97067398,126.88,126.82,7.8847]
[1725645708482,20.0,126.89,126.81,19.7133]
[1725645708483,21.97103049,126.89,126.81,19.7133]
[1725645708666,7.8831,126.86,126.82,7.8851]
[1725645711067,7.884,126.84,126.81,19.7133]
[1725645712173,7.8848,126.83,126.79,27.6044]
[1725645712481,7.8847,126.83,126.78,7.3871]
[1725645712683,7.8847,126.83,126.78,27.1062]
[1725645713065,7.8847,126.83,126.79,7.887]
[1725645713280,7.8847,126.83,126.78,27.6065]
[1725645713482,7.8852,126.82,126.78,27.6065]
[1725645714164,6.2365,126.84,126.78,27.6065]
[1725645714165,7.8848,126.83,126.78,27.6065]
[1725645714986,7.8848,126.83,126.79,7.8866]
[1725645715283,14.1206,126.84,126.79,7.8866]
[1725645715470,20.0,126.83,126.79,7.8866]
[1725645715877,20.0,126.83,126.76,39.4435]
[1725645716081,7.883,126.86,126.82,7.8851]
[1725645716394,6.3333,126.88,126.77,95.0]
[1725645716395,14.2153,126.88,126.83,7.8843]
[1725645716591,7.8831,126.86,126.81,15.9013]
[1725645716768,7.8831,126.86,126.81,7.8855]
[1725645717190,14.2152,126.88,126.8,0.57422424]
[1725645717396,6.4697,126.94,126.83,31.32562025]
[1725645717604,6.4697,126.94,126.9,19.6997]
[1725645717770,6.4697,126.94,126.9,27.5798]
[1725645718290,6.4697,126.94,126.88,7.881]
[1725645718591,7.8785,126.93,126.88,7.881]
[1725645719384,7.8794,126.92,126.87,27.5858]
[1725645720292,7.8794,126.92,126.88,7.8814]
[1725645720766,6.4697,126.94,126.89,19.7017]
[1725645720967,27.8784,126.93,126.89,27.5824]
[1725645721389,20.0,126.93,126.89,19.7017]
[1725645721597,7.8796,126.91,126.86,19.7058]
[1725645721889,20.0,126.93,126.82,22.5543]
[1725645721890,1.97030204,126.92,126.82,22.5543]
[1725645722078,7.8803,126.9,126.85,27.5906]
[1725645722273,20.0,126.89,126.85,27.5906]
[1725645722675,20.0,126.89,126.82,35.7322]
[1725645722888,20.0,126.92,126.82,106.01629104]
[1725645723083,20.0,126.92,126.83,20.0]
[1725645723286,6.4697,126.94,126.89,7.8803]
[1725645723287,27.8784,126.93,126.89,7.8803]
[1725645723494,20.0,126.93,126.89,7.8803]
[1725645723670,20.0,126.93,126.9,20.27135261]
[1725645723874,7.8772,126.95,126.9,27.5799]
[1725645724207,7.8766,126.96,126.9,19.7001]
[1725645724491,7.8766,126.96,126.92,7.8788]
[1725645724876,14.1874,126.97,126.93,7.8781]
[1725645725489,14.1874,126.97,126.92,19.6967]
[1725645725490,7.8753,126.98,126.94,8.44778191]
[1725645726072,7.8753,126.98,126.94,7.8777]
[1725645726505,6.0739,127.0,126.94,7.8777]
[1725645726722,13.948,127.0,126.95,7.8765]
[1725645727292,13.948,127.0,126.91,19.6977]
[1725645727293,25.7596,127.0,126.91,19.6977]
[1725645727502,7.8783,126.93,126.89,23.6966]
[1725645727671,7.8778,126.94,126.89,7.8804]
[1725645727880,20.0,126.93,126.89,7.8804]
[1725645728495,20.0,126.93,126.9,7.8801]
[1725645728797,6.0739,127.0,126.91,0.57075801]
[1725645728798,7.876,126.97,126.91,0.57075801]
[1725645728985,7.876,126.97,126.93,7.8778]
[1725645729295,20.0,126.96,126.92,27.5758]
[1725645729598,27.8765,126.96,126.92,27.5758]
[1725645729788,7.8765,126.96,126.92,27.5758]
[1725645729978,7.876,126.97,126.93,7.8781]
[1725645730180,20.0,126.96,126.93,7.8781]
[1725645730380,27.8765,126.96,126.92,27.5758]
[1725645730993,27.8765,126.96,126.92,19.6971]
[1725645730994,7.8771,126.95,126.92,19.6971]
[1725645731195,27.8767,126.96,126.92,27.5759]
[1725645731401,7.8771,126.95,126.92,19.6971]
[1725645731707,7.8771,126.95,126.91,7.8791]
[1725645731873,7.8771,126.95,126.89,19.7007]
[1725645732080,20.0,126.94,126.89,27.5811]
[1725645732299,20.0,126.94,126.89,19.7007]
[1725645732492,7.879,126.92,126.88,7.8813]
[1725645732796,7.8786,126.93,126.89,7.8808]
[1725645734299,26.645,126.94,126.86,15.4045]
[1725645734499,7.8802,126.9,126.86,23.2868]
[1725645734682,7.8802,126.9,126.86,7.8823]
[1725645734879,7.8806,126.9,126.86,7.8826]
[1725645735098,7.8799,126.91,126.86,7.8826]
[1725645735499,7.8799,126.91,126.85,19.7073]
[1725645735803,26.3395,126.94,126.85,27.5901]
[1725645735804,7.8808,126.89,126.85,27.5901]
[1725645735989,7.8804,126.9,126.85,27.5901]
[1725645736803,7.8794,126.92,126.87,19.7049]
[1725645737002,27.8796,126.91,126.87,27.5867]
[1725645737695,20.0,126.91,126.87,27.5867]
[1725645738211,7.8785,126.93,126.89,7.8807]
[1725645738508,20.0,126.92,126.89,27.5822]
[1725645738694,14.5228,126.94,126.89,27.5822]
[1725645739004,20.0,126.93,126.89,27.5822]
[1725645740100,27.8785,126.93,126.89,27.5822]
[1725645740299,27.8785,126.93,126.89,19.7019]
[1725645740886,7.8792,126.92,126.88,7.8812]
[1725645741702,7.8792,126.92,126.87,7.8818]
[1725645742208,7.8792,126.92,126.88,7.8811]
[1725645742406,7.8792,126.92,126.87,7.8818]
[1725645742595,20.0,126.93,126.86,19.7053]
[1725645742596,20.0,126.91,126.86,19.7053]
[1725645743002,27.8797,126.91,126.86,27.5874]
[1725645743187,20.0,126.91,126.88,19.7033]
[1725645743393,6.645,126.94,126.89,7.8802]
[1725645743615,20.0,126.93,126.89,7.8802]
[1725645743799,27.8787,126.93,126.89,7.8802]
[1725645744003,7.8793,126.92,126.88,27.5846]
[1725645744324,7.8792,126.92,126.88,27.5846]
[1725645744497,20.0,126.93,126.84,7.8838]
[1725645744498,7.8815,126.88,126.84,7.8838]
[1725645744696,1.97036653,126.92,126.83,23.9089]
[1725645744918,7.8816,126.88,126.83,23.9089]
[1725645746414,7.8816,126.88,126.84,7.8838]
[1725645746633,20.0,126.93,126.83,36.30887208]
[1725645746914,20.0,126.93,126.87,7.8819]
[1725645747115,7.88,126.91,126.86,7.8826]
[1725645747304,20.0,126.9,126.86,7.8826]
[1725645749016,27.8802,126.9,126.86,7.8826]
[1725645749228,20.0,126.9,126.87,7.8819]
[1725645749397,7.8796,126.91,126.87,7.8819]
[1725645750602,7.8783,126.93,126.89,7.8808]
[1725645750824,6.645,126.94,126.87,27.5861]
[1725645750825,20.0,126.92,126.87,27.5861]
[1725645751635,7.88,126.91,126.87,19.7042]
[1725645751799,7.8803,126.9,126.85,7.883]
[1725645752004,7.8803,126.9,126.86,7.8826]
[1725645752426,7.8797,126.91,126.87,7.882]
[1725645752818,7.8797,126.91,126.86,27.589]
[1725645753322,19.6979,126.92,126.83,35.7355]
[1725645753535,15.9489,126.9,126.8,16.5911]
[1725645753831,73.60108933,126.89,126.77,15.6542]
[1725645754008,7.8855,126.82,126.78,7.8874]
[1725645754199,19.7068,126.86,126.77,35.3735]
[1725645754439,7.8847,126.83,126.78,7.8871]
[1725645754725,20.0,126.82,126.79,19.7172]
[1725645754899,7.8846,126.83,126.79,27.6041]
[1725645755321,19.7054,126.87,126.8,7.8862]
[1725645755634,20.0,126.86,126.79,19.7172]